bitfinex-derivatives/quotes_SOLF0:USTF0_20250901
["timestamp","ask_amount","ask_price","bid_price","bid_amount"]
[1756730134877,2.19776037,200.3,200.24,0.03754678]
[1756730135073,2.29776037,200.3,200.24,0.03754678]
[1756730140974,0.09,200.31,200.24,0.03754678]
[1756730141177,0.09,200.27,200.24,0.03754678]
[1756730141370,123.43,200.26,200.24,0.03754678]
[1756730142570,0.09,200.25,200.24,0.03754678]
[1756730145075,25.2,200.26,200.24,0.03754678]
[1756730145278,81.96,200.27,200.24,8.09754678]
[1756730146880,82.05,200.27,200.24,8.09754678]
[1756730147281,0.09,200.26,200.24,0.03754678]
[1756730147881,81.96,200.27,200.24,0.03754678]
[1756730148080,0.09,200.26,200.24,0.03754678]
[1756730149471,81.96,200.27,200.24,0.03754678]
[1756730149876,0.09,200.26,200.24,0.03754678]
[1756730150780,81.96,200.27,200.24,0.03754678]
[1756730151482,0.09,200.26,200.24,0.03754678]
[1756730151676,81.96,200.27,200.24,0.03754678]
[1756730152278,0.09,200.26,200.24,0.03754678]
[1756730152473,81.96,200.27,200.24,0.03754678]
[1756730152674,0.09,200.26,200.24,0.03754678]
[1756730154078,2.19776037,200.3,200.24,0.03754678]
[1756730154280,2.28776037,200.3,200.24,0.03754678]
[1756730154475,0.09,200.28,200.24,0.03754678]
[1756730154779,0.09,200.28,200.24,8.09754678]
[1756730156174,123.21,200.28,200.24,8.09754678]
[1756730156487,123.12,200.28,200.24,0.03754678]
[1756730156683,0.1,200.27,200.24,0.03754678]
[1756730156884,123.12,200.28,200.24,0.03754678]
[1756730157076,0.1,200.27,200.24,0.03754678]
[1756730159880,123.12,200.28,200.24,0.03754678]
[1756730160184,0.1,200.27,200.24,0.03754678]
[1756730160384,123.12,200.28,200.24,0.03754678]
[1756730160585,0.1,200.27,200.24,0.03754678]
[1756730160885,123.12,200.28,200.24,0.03754678]
[1756730161080,0.1,200.27,200.24,0.03754678]
[1756730161280,123.12,200.28,200.24,0.03754678]
[1756730162090,0.1,200.27,200.24,0.03754678]
[1756730162487,123.12,200.28,200.24,0.03754678]
[1756730162689,125.31776037,200.28,200.24,0.03754678]
[1756730162883,0.1,200.27,200.24,0.03754678]
[1756730163588,125.31776037,200.28,200.24,0.03754678]
[1756730164095,125.31776037,200.28,200.25,8.06]
[1756730164792,0.1,200.27,200.24,0.03754678]
[1756730164991,122.96,200.26,200.24,0.03754678]
[1756730165194,122.96,200.26,200.24,8.09754678]
[1756730165388,123.06,200.26,200.24,0.03754678]
[1756730165588,122.96,200.26,200.24,0.03754678]
[1756730165792,0.1,200.25,200.24,0.03754678]
[1756730170794,123.04,200.25,200.24,0.03754678]
[1756730170994,123.03,200.25,200.24,0.03754678]
[1756730172202,0.09,200.25,200.24,0.03754678]
[1756730172404,123.01,200.25,200.24,0.03754678]
[1756730178607,122.99,200.25,200.24,0.03754678]
[1756730180809,2.28776037,200.27,200.24,8.03754678]
[1756730181012,122.9,200.26,200.24,8.03754678]
[1756730184515,0.09,200.25,200.24,0.03754678]
[1756730185014,122.9,200.26,200.24,0.03754678]
[1756730187122,2.19776037,200.27,200.24,0.03754678]
[1756730187323,122.9,200.26,200.24,0.03754678]
[1756730188625,2.19776037,200.27,200.24,0.03754678]
[1756730188831,122.9,200.26,200.24,0.03754678]
[1756730189126,122.99,200.26,200.24,0.03754678]
[1756730189526,0.09,200.26,200.24,0.03754678]
[1756730189826,57.38,200.25,200.24,0.03754678]
[1756730191323,0.09,200.26,200.24,0.03754678]
[1756730191530,93.55,200.26,200.24,0.03754678]
[1756730193727,2.19776037,200.27,200.24,0.03754678]
[1756730193934,411.67922336,200.34,200.25,8.0]
[1756730193935,122.9,200.31,200.25,8.0]
[1756730195231,0.09,200.32,200.25,8.0]
[1756730195530,122.88,200.31,200.25,8.0]
[1756730198027,122.97,200.31,200.25,8.0]
[1756730199028,0.09,200.36,200.25,8.0]
[1756730199233,122.88,200.35,200.25,8.0]
[1756730199734,122.88,200.35,200.28,0.03368968]
[1756730199930,122.88,200.35,200.28,8.09368968]
[1756730200130,0.09,200.34,200.28,0.03368968]
[1756730200535,2.28776037,200.34,200.28,0.03368968]
[1756730200733,0.09,200.32,200.28,8.09368968]
[1756730200930,122.88,200.33,200.28,8.09368968]
[1756730201133,0.09,200.32,200.28,0.03368968]
[1756730201328,122.88,200.33,200.28,0.03368968]
[1756730201525,0.09,200.32,200.28,0.03368968]
[1756730201736,122.88,200.33,200.28,0.03368968]
[1756730202233,0.09,200.32,200.28,8.09368968]
[1756730202429,0.09,200.32,200.29,8.06]
[1756730202636,122.88,200.33,200.29,8.06]
[1756730202831,122.97,200.33,200.29,8.06]
[1756730203032,0.09,200.32,200.29,8.06]
[1756730204639,122.88,200.33,200.28,0.03368968]
[1756730204837,122.97,200.33,200.29,8.06]
[1756730207445,0.09,200.32,200.29,8.06]
[1756730210556,0.09,200.32,200.28,0.03368968]
[1756730211157,0.09,200.32,200.28,8.09368968]
[1756730211356,124.28440863,200.33,200.28,8.09368968]
[1756730211760,0.09,200.32,200.28,8.09368968]
[1756730212759,0.09,200.32,200.29,8.06]
[1756730213658,124.28440863,200.33,200.29,8.06]
[1756730214054,0.09,200.32,200.29,8.06]
[1756730215958,124.37440863,200.33,200.28,0.03368968]
[1756730216162,124.37440863,200.33,200.29,8.06]
[1756730216663,124.37440863,200.33,200.28,0.03368968]
[1756730216865,124.37440863,200.33,200.29,8.06]
[1756730217162,0.09,200.33,200.28,0.03368968]
[1756730217354,1.49440863,200.33,200.29,8.06]
[1756730217554,0.09,200.39,200.29,8.06]
[1756730217761,1.40440863,200.34,200.28,0.03368968]
[1756730218064,1.40440863,200.34,200.28,8.06]
[1756730218260,1.40440863,200.34,200.29,0.03845481]
[1756730218466,0.09,200.37,200.29,0.03845481]
[1756730218467,1.40440863,200.36,200.3,8.06]
[1756730220069,122.91,200.37,200.3,8.06]
[1756730220268,1.40440863,200.36,200.3,8.06]
[1756730220670,0.09,200.35,200.3,8.06]
[1756730220871,0.09,200.35,200.29,1.44286344]
[1756730221061,1.40440863,200.36,200.29,9.50286344]
[1756730222065,1.49440863,200.36,200.29,9.50286344]
[1756730226163,1.40440863,200.35,200.29,9.50286344]
[1756730227571,1.49440863,200.36,200.29,9.50286344]
[1756730228173,1.40440863,200.36,200.29,9.50286344]
[1756730229067,0.08,200.39,200.32,7.76]
[1756730229068,1.48440863,200.39,200.32,7.76]
[1756730229268,1.40440863,200.39,200.34,7.76]
[1756730229475,124.20440863,200.41,200.34,7.76]
[1756730229878,124.20440863,200.41,200.34,7.7949015]
[1756730232172,124.20440863,200.41,200.34,9.19931013]
[1756730233179,0.08,200.4,200.34,7.7949015]
[1756730233378,124.20440863,200.41,200.34,7.7949015]
[1756730233379,0.08,200.38,200.34,7.7949015]
[1756730233574,1.40440863,200.39,200.35,7.76]
[1756730233976,0.08,200.38,200.35,7.76]
[1756730234481,0.08,200.38,200.34,7.7949015]
[1756730234679,0.08,200.38,200.35,7.76]
[1756730235281,122.78,200.38,200.35,7.76]
[1756730235882,124.26440863,200.39,200.35,7.76]
[1756730236481,122.86,200.39,200.34,0.0349015]
[1756730236676,124.26440863,200.39,200.34,0.0349015]
[1756730236876,122.86,200.39,200.35,7.76]
[1756730237479,122.86,200.39,200.34,0.0349015]
[1756730238082,122.86,200.39,200.35,7.76]
[1756730238484,1.48440863,200.38,200.35,7.76]
[1756730238986,0.08,200.37,200.34,0.0349015]
[1756730239488,0.08,200.37,200.34,7.7949015]
[1756730242686,0.08,200.37,200.35,7.76]
[1756730243581,1.40440863,200.38,200.35,7.76]
[1756730243778,1.48440863,200.38,200.35,7.76]
[1756730245289,0.08,200.37,200.34,7.7949015]
[1756730248291,1.40440863,200.37,200.34,0.0349015]
[1756730248591,1.40440863,200.37,200.35,7.76]
[1756730248787,1.40440863,200.37,200.34,0.0349015]
[1756730248992,1.40440863,200.37,200.35,7.76]
[1756730249382,1.40440863,200.38,200.35,7.76]
[1756730249582,122.74,200.36,200.35,7.76]
[1756730250193,1.40440863,200.38,200.35,7.76]
[1756730250392,122.74,200.37,200.35,7.76]
[1756730251085,122.74,200.37,200.34,0.0349015]
[1756730251288,122.74,200.37,200.35,7.76]
[1756730251481,1.40440863,200.39,200.34,0.0349015]
[1756730251685,1.40440863,200.4,200.35,7.76]
[1756730251884,122.74,200.39,200.35,7.76]
[1756730252391,122.74,200.39,200.34,1.43931013]
[1756730252590,122.74,200.39,200.35,7.76]
[1756730252790,122.74,200.39,200.34,1.43931013]
[1756730253186,122.82,200.39,200.35,7.76]
[1756730253387,122.82,200.39,200.34,0.0349015]
[1756730253594,122.82,200.39,200.35,7.76]
[1756730253892,122.82,200.39,200.34,0.0349015]
[1756730254085,122.82,200.39,200.35,7.76]
[1756730254793,122.82,200.39,200.34,0.0349015]
[1756730255683,122.82,200.39,200.35,7.76]
[1756730256089,122.82,200.39,200.34,0.0349015]
[1756730256288,122.82,200.39,200.35,7.76]
[1756730256488,122.74,200.39,200.35,7.76]
[1756730256688,0.08,200.38,200.35,7.76]
[1756730259090,0.08,200.38,200.35,8.14]
[1756730259489,0.09,200.37,200.34,8.1749015]
[1756730259685,1.40440863,200.38,200.34,0.0349015]
[1756730259895,1.40440863,200.38,200.35,8.14]
[1756730260691,122.72,200.37,200.35,8.14]
[1756730260997,0.09,200.41,200.35,8.14]
[1756730261190,122.7,200.4,200.34,0.0349015]
[1756730261395,124.10440863,200.4,200.35,8.14]
[1756730261596,124.10440863,200.4,200.34,8.1749015]
[1756730264494,1.40440863,200.38,200.34,8.1749015]
[1756730264694,1.49440863,200.38,200.35,8.14]
[1756730265895,0.09,200.37,200.34,0.0349015]
[1756730266302,0.09,200.37,200.34,8.1749015]
[1756730266501,0.09,200.37,200.34,0.0349015]
[1756730266700,1.40440863,200.38,200.34,0.0349015]
[1756730266902,0.09,200.37,200.34,0.0349015]
[1756730267096,0.09,200.37,200.34,8.1749015]
[1756730267692,1.40440863,200.43,200.37,8.14]
[1756730267898,122.68,200.44,200.37,8.14]
[1756730268400,0.09,200.43,200.37,8.14]
[1756730268600,0.09,200.43,200.38,0.03160818]
[1756730268796,0.09,200.42,200.39,4.40671808]
[1756730268997,0.09,200.42,200.4,4.40671808]
[1756730269200,122.68,200.44,200.41,4.40671808]
[1756730269395,1.49440863,200.43,200.42,8.96168699]
[1756730270593,1.49440863,200.43,200.42,4.40671808]
[1756730270594,122.68,200.43,200.42,4.40671808]
[1756730272296,122.68,200.43,200.42,4.40413398]
[1756730272502,122.68,200.43,200.42,8.95491489]
[1756730272899,122.77,200.43,200.42,8.95491489]
[1756730276407,122.66,200.43,200.42,17.09491489]
[1756730276604,0.07,200.46,200.42,17.09491489]
[1756730276797,122.66,200.45,200.43,17.09491489]
[1756730277002,122.66,200.45,200.44,8.95491489]
[1756730277405,0.07,200.46,200.44,8.95491489]
[1756730277603,122.66,200.46,200.45,17.09491489]
[1756730278209,335.5,200.48,200.46,8.14]
[1756730278407,335.5,200.48,200.47,8.95491489]
[1756730278704,335.5,200.48,200.47,17.09491489]
[1756730278903,458.16,200.48,200.47,17.09491489]
[1756730279405,8.36743509,200.58,200.47,17.09491489]
[1756730279406,2.1918401,200.57,200.48,8.14]
[1756730279604,2.1918401,200.54,200.49,8.95491489]
[1756730279906,0.07,200.53,200.5,8.95491489]
[1756730280109,122.64,200.52,200.51,8.95491489]
[1756730280916,122.71,200.52,200.51,8.95491489]
[1756730281313,122.64,200.52,200.51,8.95491489]
[1756730281517,122.64,200.52,200.51,4.55078091]
[1756730281712,122.71,200.52,200.51,8.93542737]
[1756730282520,122.71,200.52,200.51,8.92814926]
[1756730283217,124.9018401,200.52,200.51,4.39801922]
[1756730283520,124.9018401,200.52,200.51,9.017408]
[1756730285324,124.9018401,200.52,200.51,4.39801922]
[1756730287123,124.9218401,200.52,200.51,4.39801922]
[1756730287821,122.71,200.52,200.51,4.39801922]
[1756730288026,2.1918401,200.54,200.51,9.00806698]
[1756730288223,0.07,200.53,200.52,4.39801922]
[1756730288423,46.93,200.53,200.52,4.39801922]
[1756730289023,0.07,200.52,200.49,0.03724824]
[1756730289225,0.07,200.51,200.5,4.37937263]
[1756730289623,2.1918401,200.52,200.49,0.03724824]
[1756730289824,0.07,200.51,200.49,0.03724824]
[1756730290224,0.07,200.51,200.5,4.37850662]
[1756730292027,0.07,200.51,200.49,0.03724824]
[1756730293821,0.07,200.52,200.49,0.03724824]
[1756730294031,0.07,200.51,200.49,0.03724824]
[1756730295731,88.75,200.51,200.49,0.03724824]
[1756730295929,88.68,200.51,200.49,0.03724824]
[1756730296133,88.68,200.51,200.49,7.51724824]
[1756730297833,88.75,200.51,200.49,0.03724824]
[1756730298034,0.07,200.5,200.49,0.03724824]
[1756730299537,90.9418401,200.51,200.49,0.03724824]
[1756730299728,0.07,200.5,200.49,0.03724824]
[1756730301434,90.8718401,200.51,200.49,0.03724824]
[1756730301640,90.9418401,200.51,200.49,0.03724824]
[1756730301838,0.07,200.5,200.49,0.03724824]
[1756730302540,2.2618401,200.5,200.49,0.03724824]
[1756730303345,0.07,200.5,200.49,0.03724824]
[1756730303745,88.68,200.51,200.49,0.03724824]
[1756730303945,88.75,200.51,200.49,0.03724824]
[1756730304147,0.07,200.51,200.49,0.03724824]
[1756730304345,122.67,200.51,200.49,0.03724824]
[1756730305443,0.07,200.5,200.49,0.03724824]
[1756730305845,122.6,200.51,200.49,7.51724824]
[1756730306042,2.1918401,200.52,200.49,7.51724824]
[1756730306250,49.46,200.51,200.49,7.51724824]
[1756730307238,49.53,200.51,200.49,0.03724824]
[1756730310349,0.07,200.5,200.49,0.03724824]
[1756730310552,0.07,200.5,200.49,4.5964022]
[1756730312047,1.47221611,200.5,200.49,4.5964022]
[1756730313443,1.47221611,200.5,200.49,4.60271783]
[1756730314954,0.07,200.5,200.49,4.60271783]
[1756730315151,1.47221611,200.5,200.49,4.60271783]
[1756730315346,1.40221611,200.5,200.49,4.60271783]
[1756730315554,122.6,200.5,200.49,12.08271783]
[1756730315754,1.40221611,200.51,200.5,7.48]
[1756730316054,1.40221611,200.51,200.5,12.04546959]
[1756730316550,1.40221611,200.53,200.51,7.48]
[1756730316757,122.6,200.54,200.53,7.48]
[1756730316958,122.6,200.54,200.53,12.04546959]
[1756730317850,2.2704146,200.55,200.54,7.79]
[1756730318055,122.6,200.56,200.55,7.79]
[1756730318247,122.6,200.56,200.55,12.35699041]
[1756730319059,122.67,200.56,200.55,4.56699041]
[1756730319257,122.6,200.56,200.55,4.56699041]
[1756730319451,122.67,200.56,200.55,4.56699041]
[1756730319658,0.07,200.55,200.53,0.03429133]
[1756730319853,2.25944134,200.54,200.53,0.03429133]
[1756730323056,0.07,200.54,200.53,0.03429133]
[1756730323451,0.07,200.57,200.53,0.03429133]
[1756730323653,124.83944134,200.56,200.53,0.03429133]
[1756730324249,122.58,200.56,200.54,7.79]
[1756730324454,122.58,200.56,200.53,0.03429133]
[1756730324654,122.58,200.56,200.54,7.79]
[1756730325453,335.34,200.58,200.54,7.79]
[1756730325862,335.34,200.58,200.53,0.03429133]
[1756730326250,335.34,200.58,200.54,7.79]
[1756730326655,335.34,200.58,200.53,0.03429133]
[1756730327261,122.58,200.59,200.54,7.79]
[1756730327457,122.58,200.59,200.53,0.03429133]
[1756730327855,122.58,200.59,200.54,7.79]
[1756730328061,122.58,200.59,200.53,0.03429133]
[1756730328757,122.58,200.59,200.54,7.79]
[1756730328954,122.58,200.59,200.53,0.03429133]
[1756730329160,122.58,200.59,200.54,7.79]
[1756730329359,122.58,200.59,200.53,0.03429133]
[1756730329660,122.58,200.59,200.54,7.79]
[1756730330262,0.07,200.58,200.53,0.03429133]
[1756730330561,0.07,200.58,200.54,7.79]
[1756730330761,122.58,200.59,200.53,0.03429133]
[1756730331063,122.58,200.59,200.53,7.82429133]
[1756730331662,122.58,200.59,200.54,4.54028313]
[1756730331862,122.65,200.59,200.55,12.33028313]
[1756730332060,122.65,200.59,200.56,4.54028313]
[1756730332361,0.07,200.58,200.57,4.54028313]
[1756730334063,0.07,200.58,200.53,0.03429133]
[1756730334064,1.43805772,200.58,200.53,0.03429133]
[1756730334261,2.25944134,200.54,200.53,0.03429133]
[1756730337066,2.25944134,200.54,200.45,7.79]
[1756730337263,123.08,200.53,200.45,7.79]
[1756730337666,2.18944134,200.52,200.45,7.79]
[1756730338462,0.03665576,200.51,200.45,7.79]
[1756730340261,0.12665576,200.51,200.45,7.79]
[1756730341058,0.12665576,200.51,200.38,7.79]
[1756730341059,2.27944134,200.49,200.38,7.79]
[1756730341969,0.03263735,200.46,200.38,7.79]
[1756730345166,2.31207869,200.46,200.38,7.79]
[1756730345469,2.18944134,200.43,200.31,4.15881334]
[1756730345660,2.18944134,200.43,200.32,7.79]
[1756730346258,0.03302966,200.4,200.32,7.79]
[1756730347766,2.222471,200.4,200.32,7.79]
[1756730349270,0.03302966,200.4,200.33,7.81]
[1756730351969,0.03302966,200.4,200.32,2.18944134]
[1756730352168,0.03302966,200.4,200.33,7.81]
[1756730358268,0.03302966,200.4,200.35,2.18944134]
[1756730359073,0.03302966,200.4,200.36,7.81]
[1756730359469,0.03302966,200.4,200.38,2.18944134]
[1756730359670,0.1,200.48,200.39,7.81]
[1756730359966,123.2,200.48,200.39,7.81]
[1756730360663,0.1,200.48,200.39,7.81]
[1756730360870,335.42,200.5,200.42,7.81]
[1756730361069,458.52,200.5,200.42,7.81]
[1756730363173,123.08,200.49,200.42,7.81]
[1756730363374,0.13,200.48,200.42,7.81]
[1756730363570,123.21,200.48,200.42,7.81]
[1756730369673,0.13,200.48,200.42,7.81]
[1756730369873,122.94,200.47,200.42,7.81]
[1756730370477,122.94,200.47,200.43,2.18944134]
[1756730370672,122.94,200.47,200.44,7.81]
[1756730370876,122.94,200.47,200.43,2.18944134]
[1756730371172,0.13,200.51,200.43,2.18944134]
[1756730371372,123.05,200.51,200.44,7.81]
[1756730371572,122.94,200.52,200.47,7.81]
[1756730371777,122.94,200.53,200.47,7.81]
[1756730372175,122.94,200.53,200.47,7.84370994]
[1756730372768,122.94,200.53,200.47,0.03370994]
[1756730373179,0.13,200.52,200.47,0.03370994]
[1756730373373,122.94,200.53,200.47,0.03370994]
[1756730373573,0.13,200.52,200.47,0.03370994]
[1756730373770,122.94,200.53,200.47,0.03370994]
[1756730373970,0.13,200.52,200.47,0.03370994]
[1756730374178,122.94,200.53,200.47,0.03370994]
[1756730374480,123.07,200.53,200.47,0.03370994]
[1756730377282,122.94,200.53,200.48,7.81]
[1756730377478,122.94,200.53,200.47,7.84370994]
[1756730377979,0.12,200.52,200.47,7.84370994]
[1756730378379,122.94,200.53,200.47,7.84370994]
[1756730378581,122.94,200.53,200.47,0.03370994]
[1756730378781,0.12,200.52,200.47,0.03370994]
[1756730379280,122.94,200.53,200.47,0.03370994]
[1756730379577,0.12,200.52,200.47,0.03370994]
[1756730379880,122.94,200.53,200.47,0.03370994]
[1756730380281,0.12,200.52,200.47,0.03370994]
[1756730380677,2.18944134,200.51,200.47,0.03370994]
[1756730380883,2.18944134,200.48,200.47,0.03370994]
[1756730381082,2.30944134,200.48,200.47,0.03370994]
[1756730382282,0.12,200.48,200.47,0.03370994]
[1756730383983,2.18944134,200.49,200.47,0.03370994]
[1756730384378,2.30944134,200.49,200.47,0.03370994]
[1756730384773,0.12,200.49,200.47,0.03370994]
[1756730384975,2.30944134,200.52,200.48,8.16]
[1756730385581,0.12,200.52,200.48,8.16]
[1756730385779,47.04,200.54,200.52,65.88]
[1756730390888,47.54,200.54,200.47,0.03370994]
[1756730391088,2.18944134,200.5,200.47,0.03370994]
[1756730392584,2.18944134,200.48,200.47,0.03370994]
[1756730392884,0.86805772,200.58,200.48,8.16]
[1756730393090,125.30944134,200.57,200.48,8.16]
[1756730394188,123.12,200.56,200.48,8.16]
[1756730397702,125.30944134,200.56,200.48,8.16]
[1756730398498,125.30944134,200.56,200.47,0.03370994]
[1756730406007,2.18944134,200.53,200.47,0.03370994]
[1756730407509,123.12,200.56,200.47,0.03370994]
[1756730407710,2.18944134,200.51,200.47,0.03370994]
[1756730407906,122.9,200.5,200.47,0.03370994]
[1756730408413,2.18944134,200.56,200.47,0.03370994]
[1756730408614,122.9,200.55,200.47,0.03370994]
[1756730410416,2.18944134,200.53,200.47,0.03370994]
[1756730410716,2.18944134,200.5,200.47,0.03370994]
[1756730410916,21.08,200.49,200.47,0.03370994]
[1756730411214,2.18944134,200.5,200.47,0.03370994]
[1756730411415,41.92,200.49,200.47,0.03370994]
[1756730413215,61.64,200.49,200.47,0.03370994]
[1756730414917,63.82944134,200.49,200.47,0.03370994]
[1756730417716,2.18944134,200.48,200.47,0.03370994]
[1756730417915,2.18944134,200.48,200.38,7.59]
[1756730418122,2.18944134,200.43,200.38,7.59]
[1756730419221,2.22535758,200.43,200.38,7.59]
[1756730420022,2.22535758,200.43,200.34,7.59]
[1756730425325,2.18944134,200.4,200.3,7.59]
[1756730425525,11.52944134,200.4,200.3,7.59]
[1756730426927,0.03317982,200.37,200.3,7.59]
[1756730427931,2.22262116,200.37,200.3,7.59]
[1756730428325,0.03317982,200.37,200.3,7.59]
[1756730428826,0.03317982,200.37,200.32,7.59]
[1756730429030,0.03317982,200.37,200.31,9.77944134]
[1756730429230,9.34,200.4,200.31,9.77944134]
[1756730429630,0.03188701,200.36,200.32,7.59]
[1756730430228,0.03188701,200.36,200.31,2.18944134]
[1756730430428,0.03188701,200.36,200.32,7.59]
[1756730430629,0.03188701,200.36,200.31,2.18944134]
[1756730431025,0.03188701,200.36,200.32,7.59]
[1756730432730,0.03188701,200.36,200.28,9.77944134]
[1756730435328,0.03188701,200.36,200.29,7.59]
[1756730435733,27.32,200.37,200.29,7.59]
[1756730435934,2.18944134,200.4,200.29,7.59]
[1756730436138,0.03419984,200.35,200.29,7.59]
[1756730443435,2.18944134,200.34,200.23,7.74]
[1756730444141,0.03589949,200.31,200.23,7.74]
[1756730463651,2.22534083,200.31,200.23,7.74]
[1756730467652,0.02,200.27,200.23,7.74]
[1756730467849,2.18944134,200.28,200.23,7.74]
[1756730468061,0.02,200.27,200.23,7.74]
[1756730468257,0.02,200.27,200.19,7.71]
[1756730469049,0.03416824,200.25,200.19,7.71]
[1756730471759,0.03416824,200.25,200.19,9.89944134]
[1756730471960,0.03416824,200.25,200.2,7.71]
[1756730473258,0.03416824,200.25,200.17,7.71]
[1756730473460,0.02,200.28,200.17,7.71]
[1756730473758,0.02,200.28,200.19,7.71]
[1756730473759,0.03585314,200.23,200.19,7.71]
[1756730481264,0.03585314,200.23,200.17,2.18944134]
[1756730481663,0.03585314,200.23,200.16,7.71]
[1756730482471,0.02,200.22,200.16,7.71]
[1756730486973,0.02,200.19,200.16,7.71]
[1756730488970,2.18944134,200.2,200.1,7.71]
[1756730489773,0.0323905,200.17,200.1,7.71]
[1756730492579,2.20944134,200.16,200.1,7.71]
[1756730495174,0.02,200.16,200.1,7.71]
[1756730497072,2.20944134,200.14,200.1,7.71]
[1756730497880,0.03,200.13,200.1,7.71]
[1756730498076,122.83,200.13,200.1,7.71]
[1756730498881,122.83,200.13,200.03,7.68]
[1756730499075,2.18944134,200.11,200.03,7.68]
[1756730499585,0.03525666,200.09,200.03,7.68]
[1756730501681,33.98,200.08,199.95,7.68]
[1756730501882,33.98,200.08,199.99,7.68]
[1756730502284,42.06,200.08,199.99,7.68]
[1756730502482,0.03678232,200.06,199.99,7.68]
[1756730507583,2.22622366,200.06,199.99,7.68]
[1756730509390,0.03,200.05,199.99,7.68]
[1756730510993,0.03,200.02,199.99,7.68]
[1756730511191,0.03,200.02,199.94,7.68]
[1756730511989,0.03475894,200.0,199.94,7.68]
[1756730518098,0.03475894,200.0,199.94,2.18944134]
[1756730518293,2.18944134,200.08,199.98,7.68]
[1756730518597,2.82,200.07,199.98,7.68]
[1756730518793,2.18944134,200.08,199.98,7.68]
[1756730518993,338.00944134,200.2,200.0,7.68]
[1756730519186,2.18944134,200.12,200.0,7.68]
[1756730519495,2.18944134,200.12,199.92,4.9]
[1756730519496,0.04,200.13,200.03,7.68]
[1756730519694,19.1,200.12,200.05,7.68]
[1756730519897,2.18944134,200.15,200.05,7.68]
[1756730520094,21.82,200.14,200.06,7.68]
[1756730520394,41.12,200.15,200.08,0.03327096]
[1756730520588,41.12,200.15,200.09,7.68]
[1756730520987,0.04,200.16,200.09,7.68]
[1756730521391,2.18944134,200.17,200.09,7.68]
[1756730521598,338.04944134,200.2,200.09,7.68]
[1756730521797,122.82,200.19,200.09,7.68]
[1756730522497,122.82,200.19,200.08,2.18944134]
[1756730522498,122.82,200.19,200.13,7.68]
[1756730522991,338.04944134,200.2,200.13,7.68]
[1756730522992,335.82,200.2,200.13,7.68]
[1756730523198,458.64,200.2,200.13,7.68]
[1756730527292,335.82,200.2,200.13,7.68]
[1756730527892,0.04,200.26,200.15,7.48]
[1756730528092,15.12,200.25,200.17,2.18944134]
[1756730528600,15.12,200.25,200.19,0.03222539]
[1756730528906,36.78,200.25,200.19,0.03222539]
[1756730529099,57.36,200.25,200.2,7.48]
[1756730529791,57.36,200.25,200.19,0.03222539]
[1756730531199,0.04,200.3,200.2,7.48]
[1756730531395,0.04,200.3,200.2,9.66944134]
[1756730531603,122.74,200.29,200.21,7.48]
[1756730532302,122.74,200.29,200.24,7.48]
[1756730532498,122.74,200.29,200.23,0.03599008]
[1756730532700,122.74,200.29,200.23,7.51599008]
[1756730535907,122.72,200.31,200.24,7.48]
[1756730538802,0.04,200.3,200.23,0.03599008]
[1756730539907,0.04,200.27,200.23,0.03599008]
[1756730540107,122.68,200.26,200.23,0.03599008]
[1756730540402,122.68,200.26,200.11,12.7]
[1756730540403,2.18944134,200.25,200.13,7.48]
[1756730540596,122.68,200.26,200.09,9.66944134]